[Event "Marmaris Karya-18 GM-May 2022"]
[Site "Icmeler-Marmaris"]
[Date "2022.05.12"]
[Round "5.5"]
[White "Inci, Okan"]
[Black "Darban, Morteza"]
[Result "0-1"]
[ECO "B36"]
[WhiteElo "1688"]
[BlackElo "2279"]
[Annotator "TA"]
[PlyCount "106"]
[EventDate "2022.05.11"]
[EventCountry "TUR"]
[SourceTitle "playchess.com"]
[Source "ChessBase"]
[SourceQuality "1"]
[TimeControl "5400+30"]

{[%evp 34,106,0,0,0,0,0,0,0,0,0,0,0,-12,-11,-27,-27,-23,-10,-13,-8,-9,-5,-72,-64,-219,-22,-22,-22,-141,-135,-117,-87,-97,-90,-612,-612,-610,-610,-596,-496,-29971,-29971,-29969,-29971,-29973,-29972,-29974,-29975,-29974,-29976,-29982,-29983,-29983,-29983,-29984,-29985,-29985,-29986,-29986,-29987,-29987,-29988,-29988,-29989,-29993,-29994,-29993,-29994,-29995,-29996,-29996,-29997,-29997,-29998]} 1. Nf3 {[%emt 0:03:00]} c5 {[%emt 0:05:00]} 2. c4 {[%emt 0:00:30]} g6 {[%emt 0:01:30]} 3. d4 {[%emt 0:04:30]} cxd4 {[%emt 0:00:30]} 4. Nxd4 {[%emt 0:00:30]} Nc6 {[%emt 0:05:30]} 5. e4 {[%emt 0:02:30]} Nf6 {[%emt 0:00:30]} 6. Nc3 {[%emt 0:00:30]} d6 {[%emt 0:00:00]} 7. Be2 {[%emt 0:01:30]} Nxd4 {[%emt 0:00:00]} 8. Qxd4 {[%emt 0:01:30]} Bg7 {[%emt 0:00:30]} 9. Be3 {[%emt 0:01:30]} O-O {[%emt 0:00:00]} 10. Qd2 {[%emt 0:02:30]} Be6 {[%emt 0:01:00]} 11. O-O {[%emt 0:00:30]} Qa5 {[%emt 0:00:30]} 12. Rac1 {[%emt 0:09:30]} Rfc8 {[%emt 0:00:00]} 13. b3 {[%emt 0:00:30]} a6 {[%emt 0:01:00]} 14. f3 {[%emt 0:04:30]} b5 {[%emt 0:06:30]} 15. Nd5 {[%emt 0:00:30]} Qxd2 {[%emt 0:00:30]} 16. Bxd2 {[%emt 0:00:30]} Nxd5 {[%emt 0:00:30]} 17. cxd5 {[%emt 0:00:30]} Bd4+ {[%emt 0:00:00]} 18. Kh1 {[%emt 0:00:30]} Bd7 {[%emt 0:00:00] B36: Sicilian: Maroczy Bind: Gurgenidze System.} 19. Rxc8+ {[%emt 0:02:30]} Rxc8 {[%emt 0:00:00]} 20. Rc1 {[%emt 0:00:30] Against Rc2} Rxc1+ {[%emt 0:00:00] The position is equal.} 21. Bxc1 $11 {[%emt 0:00:00][%mdl 4096] Endgame KBB-KBB} e6 {[%emt 0:12:30]} 22. dxe6 {[%emt 0:03:00]} Bxe6 {[%emt 0:01:30] [#]} 23. f4 $146 {[%emt 0:08:30]} ({Predecessor:} 23. g4 d5 24. Bd3 dxe4 25. Bxe4 a5 26. Bc6 a4 27. Bxb5 axb3 28. axb3 Bxb3 29. Bc6 Kg7 30. Kg2 Be6 {½-½ (30) Kantor,G (2514)-Bakhmatsky,V (2404) Tarvisio 2017}) 23... d5 {[%emt 0:06:30]} 24. Bf3 {[%emt 0:01:30]} dxe4 {[%emt 0:00:00]} 25. Bxe4 {[%emt 0:00:30]} a5 {[%emt 0:06:00]} 26. g3 {[%emt 0:21:30]} Bh3 {[%emt 0:04:30]} 27. Bg2 {[%emt 0:09:30]} Bf5 {[%emt 0:00:30]} 28. Bd5 {[%emt 0:01:30]} (28. Bc6 $11 {keeps the balance.}) 28... b4 $17 {[%emt 0:02:30]} 29. a3 $2 {[%emt 0:00:30] [#]} (29. a4 $15) 29... Bh3 $2 {[%emt 0:00:00]} (29... a4 $1 $19 {Threatens to win with ...bxa3.} 30. Kg2 (30. bxa4 $2 b3 $19) (30. axb4 $2 axb3 31. b5 b2 $19) 30... Bc2 31. bxa4 b3) 30. axb4 $11 {[%emt 0:05:00]} axb4 {[%emt 0:00:00]} 31. f5 {[%emt 0:02:09]} (31. Bd2 $11 {remains equal.}) 31... Bxf5 $17 {[%emt 0:02:30]} 32. Kg2 {[%emt 0:00:09]} Kf8 {[%emt 0:19:30]} 33. Kf3 {[%emt 0:00:06]} Ke7 {[%emt 0:00:30]} 34. Be3 $2 {[%emt 0:00:20][%mdl 8192]} (34. g4 $17 Be6 35. Ke4) 34... Bxe3 $19 {[%emt 0:00:00]} 35. Kxe3 {[%emt 0:00:06] [#] KB-KB} Be6 $1 {[%emt 0:00:00]} 36. Kd4 {[%emt 0:00:30]} f5 {[%emt 0:00:30]} 37. Bxe6 {[%emt 0:04:36]} (37. Bf3 $19 Bxb3 38. Kc5) 37... Kxe6 {[%emt 0:00:00] KP-KP. Black mates.} 38. Kc5 {[%emt 0:00:04]} Ke5 {[%emt 0:00:00]} 39. h4 {[%emt 0:06:59]} h6 {[%emt 0:01:30]} 40. Kxb4 {[%emt 0:00:17] K3P-K3P} Kd4 {[%emt 0:00:30]} 41. Ka5 {[%emt 0:00:18]} g5 {[%emt 0:00:00]} 42. hxg5 {[%emt 0:00:14]} hxg5 {[%emt 0:00:00] KPP-KPP} 43. b4 {[%emt 0:00:15]} f4 {[%emt 0:00:00]} 44. gxf4 {[%emt 0:00:34]} gxf4 {[%emt 0:00:00] KP-KP} 45. b5 {[%emt 0:00:09]} Kc5 {[%emt 0:00:00]} ({Stronger than} 45... f3 46. b6 $11) 46. b6 {[%emt 0:03:14]} Kc6 {[%emt 0:00:00]} 47. Ka6 {[%emt 0:01:43]} f3 {[%emt 0:00:30]} 48. b7 {[%emt 0:00:34]} f2 {[%emt 0:00:00]} ({But not} 48... Kc7 49. Ka7 Kd7 50. b8=Q f2 51. Qf8 Ke6 52. Qxf2 Ke5 53. Qf3) 49. Ka7 {[%emt 0:00:59]} f1=Q {[%emt 0:00:00]} 50. b8=N+ {[%emt 0:00:25]} Kd6 {[%emt 0:00:30]} 51. Na6 {[%emt 0:00:20]} Qb5 {[%emt 0:00:30]} 52. Nb8 {[%emt 0:00:42]} Kc7 {[%emt 0:00:00][%csl Gc7][%cal Rb5b7]} 53. Na6+ {[%emt 0:00:13]} Kc8 {[%emt 0:00:00] Weighted Error Value: White=0.50/Black=0.14 (very precise)} 0-1

[Event "Marmaris Karya-18 GM-May 2022"]
[Site "Icmeler-Marmaris"]
[Date "2022.05.12"]
[Round "6.2"]
[White "Sevdimaliyev, Urfan"]
[Black "Gunduz, Umut Erdem"]
[Result "1-0"]
[ECO "A13"]
[WhiteElo "2331"]
[BlackElo "2316"]
[Annotator "TA"]
[PlyCount "36"]
[EventDate "2022.05.10"]
[EventType "tourn"]
[EventCountry "TUR"]
[SourceTitle "playchess.com"]
[Source "ChessBase"]
[SourceQuality "1"]
[TimeControl "5400+30"]

{[%evp 10,36,28,19,48,11,11,8,11,0,0,-6,0,0,15,15,21,25,128,89,107,56,170,175,322,169,909,247,216]} 1. c4 {[%emt 0:17:00]} e6 {[%emt 0:01:00]} 2. g3 {[%emt 0:00:30]} d5 {[%emt 0:00:30][%cal Bd7d5,Bd5d4][%mdl 32]} 3. Bg2 {[%emt 0:00:30]} d4 {[%emt 0:02:30]} 4. Nf3 {[%emt 0:00:30]} Nf6 {[%emt 0:00:30]} 5. O-O {[%emt 0:00:30]} Nc6 {[%emt 0:00:30]} 6. d3 {[%emt 0:02:30]} e5 {[%emt 0:01:30] 6...Bc5 gains popularity. A13: English Opening: 1...e6.} 7. e3 {[%emt 0:00:30]} (7. b4 {looks sharper.} Nxb4 8. Nxe5 Bd6 9. Qa4+) 7... Bc5 {[%emt 0:00:30]} 8. exd4 {[%emt 0:00:30]} Nxd4 {[%emt 0:00:00] The position is equal.} 9. Nxd4 {[%emt 0:10:30]} Bxd4 {[%emt 0:00:00]} 10. Nd2 {[%emt 0:02:30]} O-O {[%emt 0:01:30] [#]} 11. Nb3 $146 {[%emt 0:03:30]} ({Predecessor:} 11. Nf3 Bg4 12. h3 Bxf3 13. Qxf3 c6 14. Re1 Nd7 15. Bd2 a5 16. Rad1 Nc5 17. Bc1 {0-1 (53) Rodrigue Lemieux,S (2334)-Jaracz,P (2459) Chess.com INT 2022}) 11... c6 {[%emt 0:27:30]} 12. Nxd4 {[%emt 0:07:30]} Qxd4 {[%emt 0:00:30]} 13. Qb3 {[%emt 0:25:30]} c5 {[%emt 0:12:30]} (13... Bf5 $11 {remains equal.}) 14. Bd2 {[%emt 0:00:30]} Qd6 {[%emt 0:00:30]} 15. Bc3 {[%emt 0:00:30] White is more active.} (15. Rfe1 $16) 15... Ng4 {[%emt 0:05:30]} (15... Re8 $14) 16. Rfe1 {[%emt 0:03:30]} (16. Bxb7 $2 Rb8 17. Bxc8 Rxb3 18. Bxg4 {[#]} Rxc3 $1 {[%mdl 512]} 19. bxc3 Qxd3 $19) 16... Nh6 {[%emt 0:00:30]} (16... Re8 $142 17. h3 (17. Bxb7 $2 Rb8 $19) 17... Nf6) 17. h3 {[%emt 0:00:30]} ({But not} 17. Bxe5 Qd8 18. Qc3 Nf5) ({Not} 17. Bxb7 Bxb7 18. Qxb7 f6 $16) (17. Rxe5 $142 {And now Qa3 would win.} Ng4 18. Rd5) 17... Rb8 $2 {[%emt 0:04:30] [#]} (17... f6) 18. Qa3 $2 {[%emt 0:00:30]} (18. Bxe5 Qd8 19. Bxb8 Bxh3 20. Bxa7 Bxg2 21. Kxg2) 18... f6 {[%emt 0:29:50] Weighted Error Value: White=0.59/Black=0.55} 1-0

[Event "Marmaris Karya-18 GM-May 2022"]
[Site "Icmeler-Marmaris"]
[Date "2022.05.12"]
[Round "6.3"]
[White "Odeev, Handszar"]
[Black "Angun, Batu"]
[Result "1-0"]
[ECO "B20"]
[WhiteElo "2305"]
[BlackElo "2326"]
[Annotator "TA"]
[PlyCount "41"]
[EventDate "2022.05.10"]
[EventType "tourn"]
[EventCountry "TUR"]
[SourceTitle "playchess.com"]
[Source "ChessBase"]
[SourceQuality "1"]
[TimeControl "5400+30"]

{[%evp 9,41,29,29,27,87,100,89,76,117,118,122,120,137,134,180,166,172,180,172,185,175,173,183,171,196,175,660,174,173,177,177,166,175,170]} 1. e4 {[%emt 0:19:00]} c5 {[%emt 0:01:00]} 2. b3 {[%emt 0:00:30]} Nc6 {[%emt 0:02:30]} 3. Bb2 {[%emt 0:00:30]} d5 {[%emt 0:00:30]} 4. exd5 {[%emt 0:00:00]} Qxd5 {[%emt 0:00:00]} 5. Nc3 {[%emt 0:00:00]} Qd8 {[%emt 0:00:00]} 6. Bb5 {[%emt 0:00:00] B20: Sicilian: Unusual White 2nd moves.} Nf6 {[%emt 0:00:30]} (6... Bd7 $11 {keeps the balance.}) 7. Bxc6+ $16 {[%emt 0:02:00]} bxc6 {[%emt 0:00:30] [#]} 8. Qe2 $146 {[%emt 0:02:30] White is better.} ({Predecessor:} 8. Qf3 e6 9. Qxc6+ Bd7 10. Qa6 Be7 11. Nf3 O-O 12. O-O-O Qc7 13. Rhe1 Rab8 14. Ne5 {1-0 (36) Reprintsev,A (2353)-Rodchenkov,V (2330) Chess.com INT 2022}) 8... Bf5 {[%emt 0:03:30]} 9. O-O-O {[%emt 0:02:30]} e6 {[%emt 0:02:30]} 10. Nf3 {[%emt 0:00:30]} Be7 {[%emt 0:04:30]} 11. Ne5 {[%emt 0:00:30] Against Bg4} Qc7 {[%emt 0:00:00]} (11... Bd6 $16) 12. g4 $18 {[%emt 0:00:30]} Bd6 {[%emt 0:15:00]} 13. Nxf7 {[%emt 0:33:30] Pair of Knights!} Bxg4 {[%emt 0:00:30]} 14. Nxd6+ {[%emt 0:00:30]} Qxd6 {[%emt 0:00:30]} 15. f3 {[%emt 0:00:30][%cal Bf2f3,Bf3e4][%mdl 32]} Bf5 {[%emt 0:02:30]} 16. Ne4 {[%emt 0:00:30]} Bxe4 {[%emt 0:00:30]} 17. fxe4 {[%emt 0:00:30] [#] Hoping for e5.} O-O-O $2 {[%emt 0:01:30]} (17... e5 18. Rdf1 O-O) 18. Qc4 $2 {[%emt 0:00:30]} (18. e5 Qe7 19. exf6 gxf6 20. Qa6+ Kb8 21. Rhf1) 18... e5 {[%emt 0:00:30] White is clearly better.} 19. Rhg1 {[%emt 0:00:30][%cal Bh1g1,Bg1g3,Bg3c3][%mdl 32]} Rd7 {[%emt 0:04:30]} 20. Rg3 {[%emt 0:04:30]} Re8 {[%emt 0:00:30]} 21. Rc3 {[%emt 0:04:30] Black did not feel at home in the position after the opening.  Weighted Error Value: White=0.41/Black=0.61} 1-0

[Event "Marmaris Karya-18 GM-May 2022"]
[Site "Icmeler-Marmaris"]
[Date "2022.05.12"]
[Round "6.4"]
[White "Darban, Morteza"]
[Black "Ozdemir, Serhan Berat"]
[Result "0-1"]
[ECO "B40"]
[WhiteElo "2279"]
[BlackElo "2117"]
[Annotator "TA"]
[PlyCount "70"]
[EventDate "2022.05.10"]
[EventType "tourn"]
[EventCountry "TUR"]
[SourceTitle "playchess.com"]
[Source "ChessBase"]
[SourceQuality "1"]
[TimeControl "5400+30"]

{[%evp 9,70,70,51,55,88,85,91,79,85,87,85,44,80,76,85,97,99,103,81,16,88,79,139,133,124,113,103,106,104,98,88,79,92,85,132,136,123,139,132,119,122,20,48,53,41,-10,-17,-21,-18,-179,-160,-458,-409,-524,-534,-520,-355,-329,-320,-374,-55,-395,683]} 1. e4 {[%emt 0:11:00]} c5 {[%emt 0:05:00]} 2. Nf3 {[%emt 0:01:30]} e6 {[%emt 0:00:30]} 3. g3 {[%emt 0:01:30]} Nc6 {[%emt 0:00:30]} 4. Bg2 {[%emt 0:00:00]} g6 {[%emt 0:00:30]} 5. d4 {[%emt 0:00:00]} cxd4 {[%emt 0:08:30]} 6. Nxd4 {[%emt 0:00:30] B40: Sicilian: 2...e6, Unusual lines.} Qb6 {[%emt 0:00:30]} 7. Nb3 {[%emt 0:04:30]} Bg7 {[%emt 0:05:30]} 8. O-O {[%emt 0:05:30] White is better.} Nge7 {[%emt 0:00:30]} 9. c4 {[%emt 0:00:30]} O-O {[%emt 0:03:30]} 10. Na3 {[%emt 0:09:30] [#]} Qd8 $146 {[%emt 0:04:30]} ({Predecessor:} 10... f5 11. Be3 Qd8 12. Qd2 fxe4 13. Bxe4 d5 14. Bg2 d4 15. Bh6 e5 16. Bxg7 Kxg7 {1-0 (30) Drabke,L (2428)-Hoffmann,N (2199) Schwaebisch Gmuend 2005}) 11. Nb5 {[%emt 0:03:30]} b6 {[%emt 0:06:30]} 12. Qe2 {[%emt 0:00:30]} Ba6 {[%emt 0:01:30]} 13. Rd1 {[%emt 0:01:30]} Rc8 {[%emt 0:01:30]} 14. a4 {[%emt 0:19:30]} (14. Nd6 $16) 14... f5 {[%emt 0:04:30]} (14... Ne5 $11 {keeps the balance.}) 15. Bf4 $16 {[%emt 0:06:30]} e5 {[%emt 0:04:30]} ({Black should play} 15... fxe4 16. Bxe4 Nf5) 16. Bd2 {[%emt 0:01:30]} fxe4 {[%emt 0:03:30]} 17. Qxe4 {[%emt 0:07:30]} Nf5 {[%emt 0:04:30]} 18. Bc3 {[%emt 0:00:30]} Kh8 {[%emt 0:09:30]} 19. Qd5 {[%emt 0:05:30]} Qf6 {[%emt 0:03:30][%cal Of5d4]} 20. Nd2 {[%emt 0:00:21]} Nfe7 {[%emt 0:01:30]} 21. Qf3 {[%emt 0:00:03]} Qe6 {[%emt 0:06:30]} ({Black should try} 21... Nf5) 22. Qd3 $1 {[%emt 0:00:10]} Nf5 {[%emt 0:00:30]} 23. Re1 {[%emt 0:05:35]} Qe7 {[%emt 0:01:30] Inhibits b4.} 24. b3 {[%emt 0:00:59]} Nb4 {[%emt 0:00:30]} 25. Qe4 {[%emt 0:08:15]} (25. Bxb4 $16 Qxb4 26. Nxa7 (26. Qxd7 $2 Bxb5 27. axb5 Rcd8 $19)) 25... Bxb5 {[%emt 0:01:30]} 26. axb5 {[%emt 0:00:08] aiming for Ra4.} d5 $1 {[%emt 0:00:00]} 27. Qb1 {[%emt 0:02:07]} ({But not} 27. Bxb4 Qxb4 28. Qe2 (28. Qxd5 $2 Rcd8 $19) 28... Nd4 $15) ({Better is} 27. Qe2 $14) 27... e4 $1 $11 {[%emt 0:04:09]} 28. Bxg7+ {[%emt 0:01:22]} Qxg7 {[%emt 0:00:02]} 29. Ra4 $2 {[%emt 0:00:28] [#]} (29. cxd5 $11 {and White is okay.} Nc2 30. Nxe4) 29... Nd3 $1 $36 {[%emt 0:00:37][%mdl 2048] Black is on the roll.} 30. Rf1 $2 {[%emt 0:02:09] [#]} (30. cxd5 $17 Nxe1 31. Qxe1) 30... Nd4 $1 {[%emt 0:01:50][%cal Bf5d4,Bd4e2,Be2c3][%mdl 32] White must now prevent ...Ne2+.} 31. Bh3 {[%emt 0:00:30]} Ne2+ {[%emt 0:00:35] Pair of Knights!} 32. Kg2 {[%emt 0:00:30]} Rce8 {[%emt 0:01:45] And now ...Nc3 would win.} 33. Qa1 {[%emt 0:00:30]} Nc3 {[%emt 0:00:31]} 34. Rxa7 {[%emt 0:00:30]} Qe5 {[%emt 0:00:32]} (34... Qd4 $19 35. Nb1 Rxf2+ 36. Kh1 Rxf1+ 37. Bxf1 Nf2+ 38. Kg2 Nfd1) 35. Nb1 $2 {[%emt 0:00:30][%mdl 8192]} (35. Bd7 $1 $15 Rd8 36. cxd5) 35... Rf6 $4 {[%emt 0:00:46][%mdl 40960] What a bad dream for Black.  Weighted Error Value: White=0.54/Black=0.31. Loss on time!?} 0-1

[Event "Marmaris Karya-18 GM-May 2022"]
[Site "Icmeler-Marmaris"]
[Date "2022.05.12"]
[Round "6.5"]
[White "Blesic, Vaso"]
[Black "Inci, Okan"]
[Result "1-0"]
[ECO "D84"]
[WhiteElo "2264"]
[BlackElo "1688"]
[Annotator "TA RC"]
[PlyCount "42"]
[EventDate "2022.05.10"]
[EventType "tourn"]
[EventCountry "TUR"]
[SourceTitle "playchess.com"]
[Source "ChessBase"]
[SourceQuality "1"]
[TimeControl "5400+30"]

{[%evp 15,42,2,24,-29,-27,-20,-39,-23,56,56,57,49,68,12,18,20,78,78,256,275,261,248,311,-207,416,329,1239,74,721]} 1. d4 {[%emt 0:01:00]} Nf6 {[%emt 0:01:00]} 2. c4 {[%emt 0:00:00]} g6 {[%emt 0:02:30]} 3. Nc3 {[%emt 0:00:00]} d5 {[%emt 0:01:30]} 4. Bf4 {[%emt 0:00:30]} Bg7 {[%emt 0:02:30]} 5. e3 {[%emt 0:00:30]} O-O {[%emt 0:00:30]} 6. cxd5 {[%emt 0:02:30]} Nxd5 {[%emt 0:01:30]} 7. Nxd5 {[%emt 0:00:30]} Qxd5 {[%emt 0:00:00]} 8. Bxc7 {[%emt 0:00:00]} Nc6 {[%emt 0:00:00] [#] And now ...Bf5 would win.} 9. Nf3 {[%emt 0:00:00] D84: Grünfeld: 4 Bf4 Bg7 5 e3 0-0 6 cxd5.} (9. Ne2 $142 $1) 9... Bf5 $11 {[%emt 0:01:30][%mdl 1024] Strongly threatening ...Rfc8. Black has compensation.} 10. Be2 {[%emt 0:08:30]} Rac8 {[%emt 0:01:30]} 11. Bg3 {[%emt 0:00:30] Black is slightly better.} Nb4 {[%emt 0:18:30]} (11... Qa5+ $11 12. Qd2 Nb4) 12. O-O $14 {[%emt 0:00:00]} Nc2 {[%emt 0:00:30]} 13. Rc1 {[%emt 0:00:00][%cal Ba1c1,Bc1b1,Bb1b7,Bb7e7][%mdl 32]} Qxa2 {[%emt 0:02:30]} 14. Qd2 {[%emt 0:20:30] [#]} ({Better is} 14. Bh4 $14) 14... Qxb2 $146 {[%emt 0:33:30]} ({Predecessor:} 14... a5 15. Nh4 Nb4 16. Nxf5 gxf5 17. Bf3 Nc6 18. Ra1 Qb3 19. Ra3 Qb4 20. Qxb4 axb4 {1-0 (70) Trkulja,G (2388)-Starcevic,N (2011) Zenica 2013}) 15. Rb1 {[%emt 0:00:30]} Qc3 {[%emt 0:00:30]} (15... Qa3 $11 {remains equal.}) 16. Rxb7 $16 {[%emt 0:00:30]} g5 $2 {[%emt 0:00:30]} (16... a5 $16) 17. Qxc3 $18 {[%emt 0:01:30]} (17. Rxe7 $6 Qxd2 18. Nxd2 Rfe8 19. Rxe8+ (19. Rxa7 Nxd4 20. Bc4 Be6 $14) 19... Rxe8 $18) 17... Rxc3 {[%emt 0:00:30]} 18. Rxe7 {[%emt 0:00:00]} Be6 {[%emt 0:00:30]} 19. Bc4 $4 {[%emt 0:00:00][%mdl 8192]} Ra3 $4 {[%emt 0:00:30][%mdl 8192]} ({And not} 19... Rxc4 20. Rxa7 h6 21. Be5) (19... Bxc4 $19 {and all is fine.} 20. Rc7 Na3) 20. d5 {[%emt 0:00:30]} a5 $2 {[%emt 0:00:30]} (20... Bf6 21. Rc7 (21. dxe6 Bxe7 22. exf7+ Kg7 $16) 21... Bf5) 21. Bh4 $2 {[%emt 0:00:30]} (21. dxe6 $18 Bf6 22. exf7+ Kg7 23. Rc7) 21... Ra8 $2 {[%emt 0:00:30][%mdl 8192] Weighted Error Value: White=1.11/Black=0.83} 1-0

[Event "Marmaris Karya-18 GM-May 2022"]
[Site "Icmeler-Marmaris"]
[Date "2022.05.13"]
[Round "7.1"]
[White "Caglar, Sila"]
[Black "Sevdimaliyev, Urfan"]
[Result "1-0"]
[ECO "C41"]
[WhiteElo "2133"]
[BlackElo "2331"]
[Annotator "TA"]
[PlyCount "51"]
[EventDate "2022.05.11"]
[EventCountry "TUR"]
[SourceTitle "playchess.com"]
[Source "ChessBase"]
[SourceQuality "1"]
[TimeControl "5400+30"]

{[%evp 14,51,25,24,35,16,22,23,33,31,29,31,31,36,32,23,45,10,26,0,7,13,10,7,54,13,28,4,4,7,33,25,33,39,513,513,513,506,506,498]} 1. e4 {[%emt 0:04:00]} e5 {[%emt 0:14:00]} 2. Nf3 {[%emt 0:00:00]} d6 {[%emt 0:00:00]} 3. d4 {[%emt 0:00:00]} exd4 {[%emt 0:00:00]} 4. Nxd4 {[%emt 0:00:30]} Nf6 {[%emt 0:00:30]} 5. Nc3 {[%emt 0:00:30]} Be7 {[%emt 0:00:00]} 6. Be2 {[%emt 0:01:30]} O-O {[%emt 0:00:00]} 7. O-O {[%emt 0:00:00]} Re8 {[%emt 0:00:30]} 8. Re1 {[%emt 0:00:00]} Nc6 {[%emt 0:03:30] C41: Philidor Defence.} 9. h3 {[%emt 0:04:30]} Bd7 {[%emt 0:01:30]} 10. Bf4 {[%emt 0:05:30]} Nxd4 {[%emt 0:02:30] White has an edge.} 11. Qxd4 {[%emt 0:00:00]} Bc6 {[%emt 0:00:30]} 12. Rad1 {[%emt 0:06:00]} Nd7 {[%emt 0:01:30]} 13. Nd5 {[%emt 0:04:30] [#]} Bf8 $146 {[%emt 0:01:30]} ({Predecessor:} 13... Nc5 14. Bc1 Bh4 15. Bf3 Ne6 16. Qc4 Bg5 17. Nb4 Bxc1 18. Rxc1 Ng5 19. Qd3 Qf6 20. Nxc6 bxc6 {½-½ (37) Parragi,I (2020)-Horvath,S (2248) Hungary 2017}) 14. b4 {[%emt 0:11:30]} a6 {[%emt 0:01:30]} 15. Bc1 {[%emt 0:04:30]} a5 {[%emt 0:05:30]} (15... Bxd5 $5 16. Qxd5 c6 $11) 16. a3 {[%emt 0:06:30]} (16. b5 $5 {[%cal Rb5c6]} Bxd5 17. Qxd5 $14) 16... axb4 {[%emt 0:00:30]} 17. axb4 {[%emt 0:00:30]} Bxd5 {[%emt 0:01:30]} 18. exd5 {[%emt 0:00:00]} c5 {[%emt 0:02:30]} (18... Be7 $11 {should be considered.}) 19. Qd2 {[%emt 0:11:00]} (19. dxc6 $5 bxc6 20. c4 $16) 19... cxb4 {[%emt 0:00:30]} 20. Bb5 {[%emt 0:00:30]} Rxe1+ {[%emt 0:00:30]} 21. Rxe1 {[%emt 0:00:00]} Nc5 {[%emt 0:00:30]} 22. Qxb4 {[%emt 0:03:00]} Qb6 {[%emt 0:01:30] [#] Strongly threatening ...Ra5.} 23. Be3 {[%emt 0:02:30]} Ra4 $2 {[%emt 0:03:30][%mdl 8192]} 24. Qxa4 $1 $18 {[%emt 0:02:30] White is clearly winning.} Nxa4 {[%emt 0:00:30]} 25. Bxb6 {[%emt 0:00:00]} Nxb6 {[%emt 0:00:30]} 26. c4 {[%emt 0:00:00] Weighted Error Value: White=0.11 (very precise) /Black=0.56} 1-0

[Event "Marmaris Karya-18 GM-May 2022"]
[Site "Icmeler-Marmaris"]
[Date "2022.05.13"]
[Round "7.2"]
[White "Gunduz, Umut Erdem"]
[Black "Odeev, Handszar"]
[Result "1-0"]
[ECO "C41"]
[WhiteElo "2316"]
[BlackElo "2305"]
[Annotator "TA"]
[PlyCount "51"]
[EventDate "2022.05.11"]
[EventCountry "TUR"]
[SourceTitle "playchess.com"]
[Source "ChessBase"]
[SourceQuality "1"]
[TimeControl "5400+30"]

{[%evp 19,51,43,49,37,47,46,43,39,81,58,52,61,152,152,168,160,240,234,302,291,312,298,458,462,579,358,29985,596,916,741,29991,29990,29996,29997]} 1. e4 {[%emt 0:01:00]} e5 {[%emt 0:14:00]} 2. Nf3 {[%emt 0:00:00]} d6 {[%emt 0:00:00]} 3. d4 {[%emt 0:00:00]} exd4 {[%emt 0:00:00]} 4. Nxd4 {[%emt 0:00:00]} Nf6 {[%emt 0:00:30]} 5. Nc3 {[%emt 0:00:00]} Be7 {[%emt 0:00:00]} 6. Bf4 {[%emt 0:00:30]} O-O {[%emt 0:02:00]} 7. Qd2 {[%emt 0:00:00]} Nc6 {[%emt 0:07:30]} 8. O-O-O {[%emt 0:00:00]} Nxd4 {[%emt 0:00:30]} 9. Qxd4 {[%emt 0:00:00]} Be6 {[%emt 0:00:00]} 10. f3 {[%emt 0:13:00]} a6 {[%emt 0:10:00]} 11. g4 {[%emt 0:01:30] C41: Philidor Defence.} b5 {[%emt 0:01:30][%cal Bb7b5,Bb5b4][%mdl 32] 11...b5 is better than 11...Nd7.} 12. h4 {[%emt 0:01:30]} c5 {[%emt 0:02:30]} 13. Qd2 {[%emt 0:00:30] White is slightly better.} Qa5 {[%emt 0:03:30]} 14. Kb1 {[%emt 0:03:30] Strongly threatening Nd5.} (14. Bxd6 $2 Bxd6 15. Qxd6 b4 $19) 14... b4 {[%emt 0:12:30]} 15. Nd5 {[%emt 0:00:00]} Bxd5 {[%emt 0:15:30]} (15... Nxd5 $14 16. exd5 Bd7) 16. exd5 $16 {[%emt 0:00:00]} Nd7 {[%emt 0:02:30]} 17. g5 {[%emt 0:04:30] [#]} c4 $146 {[%emt 0:09:28]} (17... Ne5 $16 18. Qe2 (18. Bxe5 dxe5 19. h5 Qd8 $16) 18... Qd8) ({Predecessor:} 17... Nb6 18. b3 c4 19. Bxc4 Rfc8 20. Bd3 Kh8 21. Be4 Rc5 22. Be3 Rac8 23. h5 f5 24. h6 fxe4 25. hxg7+ Kg8 26. Qh2 {1-0 (26) Agopov,M (2422)-Kiik,K (2392) Finland 2014}) 18. Bxc4 $18 {[%emt 0:01:30][%cal Bf1c4,Bc4d3,Bd3f5][%mdl 32]} Rfc8 {[%emt 0:00:06]} 19. Bd3 {[%emt 0:01:30]} Nc5 {[%emt 0:10:05]} 20. Bf5 {[%emt 0:02:30] This bishop pair is nice.} Rd8 {[%emt 0:07:46]} (20... Na4 $142) 21. h5 {[%emt 0:01:30]} Na4 {[%emt 0:00:07][%cal Oa4c3]} 22. Qd4 {[%emt 0:01:30] Prevents Nc3+. Threatening mate with h6.} Rab8 $2 {[%emt 0:00:38]} (22... Qb6 $18 23. Rhe1 Ra7 24. Qxb6 Nxb6) 23. Ka1 {[%emt 0:01:30]} (23. h6 $142 Nc3+ 24. bxc3 bxc3+ 25. Ka1 Qxa2+ 26. Kxa2 Rb2+ 27. Ka1 Bf8 {[#]} 28. Bxh7+ $1 {[%mdl 512]} Kh8 29. hxg7+ Bxg7 30. Bf5+ Kg8 31. Qf6 $3 {[%mdl 512]}) 23... Bf8 {[%emt 0:00:43]} 24. g6 {[%emt 0:01:30][%cal Bg5g6,Bg6f7][%mdl 32] White wants to mate with gxf7+.} Be7 {[%emt 0:00:12]} 25. gxf7+ {[%emt 0:00:30]} Kf8 {[%emt 0:00:52] [#]} 26. Bh6 $1 {[%emt 0:01:30][%mdl 512] White took control after the opening.  Weighted Error Value: White=0.74/Black=1.25} 1-0